Cogmind - Beta 13 @@@ ROGUE MODE // 2024.06.23 @ 07:14:08 Player: puppuppit Result: Destroyed by 00-J91(R) with Subdweller Machine Gun Performance ------------- Evolutions (0) 0 Regions Visited (3) 600 Robots Destroyed (63) 315 Value Destroyed (777) 777 Prototype IDs (4) 80 Alien Tech Used (0) 0 Bonus (45) 45 TOTAL SCORE: 1817 Bonus ------- High Alert Combat Kills 2 Follower Combat Kills 60 Friendly Fire -17 Cogmind --------- Core Integrity 0/250 Matter 101/300 Energy 280/280 System Corruption 0% Temperature Cool (0) Movement Rolling (95) Location -10/Subcaves Parts ------- > --- POWER (1) -------- Cooled Ion Engine > --- PROPULSION (2) --- Wheel Subdweller Monowheel > --- UTILITY (2) ------ Heat Sink Gun Armor > --- WEAPON (2+2) ----- Barrage Gun Grenade Launcher > --- INVENTORY (5) ---- Cooled Ion Engine Hover Unit Hover Unit Spread Laser Scrap Shield Fragment (45) Peak State ------------ > --- POWER ------------ Cooled Ion Engine > --- PROPULSION ------- Wheel Subdweller Monowheel > --- UTILITY ---------- Heat Sink Gun Armor > --- WEAPON ----------- Barrage Gun Grenade Launcher > --- INVENTORY -------- Cooled Ion Engine Hover Unit Hover Unit Spread Laser Scrap Shield Fragment [Rating: 20] Favorites ----------- Power Cooled Ion Engine Engine Cooled Ion Engine Propulsion Wheel Wheel Wheel Utility Small Storage Unit Device Heat Sink Storage Small Storage Unit Protection Gun Armor Weapon Spread Laser Energy Gun Spread Laser Ballistic Gun Assault Rifle Launcher Grenade Launcher Build | -11 -10 -10 -10 ------- Run | Yrd Mat Min Sub Slots Evolved . | . . . . Power . | . . . . Propulsion . | . . . . Utility . | . . . . Weapon . | . . . . Parts Attached 62 | 10 23 20 9 Power 5 | 1 3 . 1 Engine 5 | 1 3 . 1 Core . | . . . . Reactor . | . . . . Propulsion 13 | 4 5 2 2 Treads . | . . . . Leg . | . . . . Wheel 13 | 4 5 2 2 Hover . | . . . . Flight . | . . . . Utility 12 | 2 5 2 3 Device 6 | 1 3 1 1 Storage 4 | 1 2 1 . Processor . | . . . . Hackware . | . . . . Protection 2 | . . . 2 Artifact . | . . . . Weapon 32 | 3 10 16 3 Energy Gun 17 | 2 6 8 1 Energy Cannon . | . . . . Ballistic Gun 2 | 1 . . 1 Ballistic Cannon . | . . . . Launcher 13 | . 4 8 1 Special Weapon . | . . . . Impact Weapon . | . . . . Slashing Weapon . | . . . . Piercing Weapon . | . . . . Special Melee Weapon . | . . . . Unidentified Prototypes 2 | . 1 . 1 Parts Lost 4 | 1 1 1 1 Power . | . . . . Propulsion 2 | . 1 . 1 Utility 1 | . . 1 . Weapon 1 | 1 . . . Highest Loss Streak 1 | 1 1 1 1 To Critical Strikes . | . . . . Average Slot Usage (%) 90 | . 100 95 81 Engine 13 | . 14 14 12 Wheel 26 | . 28 28 24 Device 9 | . 14 7 7 Storage 9 | . 14 16 2 Protection 4 | . . . 9 Energy Gun 19 | . 21 25 14 Ballistic Gun 2 | . 5 . 3 Launcher 4 | . . 2 6 Naked Turns . | . . . . Heaviest Build 32 | 12 23 20 32 Greatest Support 30 | 26 20 20 30 Greatest Overweight (x) 1 | . 1 . 1 Average Overweight (x) . | . . . . Largest Inventory Capacity 10 | 8 10 8 8 Average Capacity 7 | 7 9 8 5 Most Carried 10 | 7 10 8 8 Average Carried 6 | 2 8 7 5 Final Capacity 8 | 8 8 8 5 Final Carried 8 | 7 8 8 5 Class Distribution -------------------- 95% | Mutant 4% | Scavenger-Mutant Dominant Class ---------------- Mutant | -10/Materials Mutant | -10/Mines Mutant | -10/Subcaves Resources | -11 -10 -10 -10 ----------- Run | Yrd Mat Min Sub Matter Collected 1474 | 392 394 350 338 Remotely . | . . . . Salvage Created 1192 | 216 551 237 188 Parts 118 | 21 46 30 21 Haulers Intercepted 2 | . 2 . . Recyclers Shooed 2 | 1 1 . . Parts Field Recycled . | . . . . Retrieved Matter . | . . . . Parts Self-Destructed 21 | . . . 21 Prevented . | . . . . Kills | -11 -10 -10 -10 ------- Run | Yrd Mat Min Sub Combat Hostiles Destroyed 35 | . 11 15 9 Guns 7 | . 5 1 1 AOE 28 | . 6 14 8 Classes Destroyed 13 | 3 7 1 2 Worker 7 | 2 5 . . Builder 9 | . 4 5 . Tunneler 6 | 5 . 1 . Hauler 2 | . 2 . . Recycler 4 | 1 1 2 . Mechanic 1 | . 1 . . Operator 1 | . 1 . . Turret 1 | . . . 1 Watcher 3 | . 3 . . Swarmer 22 | . 9 9 4 Grunt 2 | . 2 . . Subdweller 5 | . . . 5 Assembled 6 | . . 6 . Best Kill Streak 14 | 5 14 6 6 Combat Bots Only 7 | . 7 6 5 Max Kills in Single Turn 3 | 2 3 2 2 Gunslinging . | . . . . Exploded 2 | . 2 2 2 Melee . | . . . . Uniques/NPCs Destroyed . | . . . . Combat | -11 -10 -10 -10 -------- Run | Yrd Mat Min Sub Hostile Shots Fired 84 | . 27 26 31 Missed 31 | . 10 8 13 Damage Taken 912 | 64 231 310 307 Core 255 | . 65 101 89 Absorbed by Shields . | . . . . Regen/Repaired (Parts) 44 | . 44 . . Core Remaining (%) 100 | 100 . . . Volleys Fired 143 | 18 47 34 44 Largest 2 | 2 2 2 2 Hottest 130 | 60 130 130 130 Shots Fired 234 | 34 91 49 60 Gun 176 | 34 83 29 30 Cannon . | . . . . Launcher 58 | . 8 20 30 Special . | . . . . Kinetic 70 | 18 29 . 23 Thermal 94 | 4 54 29 7 Explosive 58 | . 8 20 30 Electromagnetic 12 | 12 . . . Robot Hit Streak 12 | 4 8 6 12 Robot Miss Streak 14 | 4 6 14 2 Penetration Max . | . . . . Secondary Targets . | . . . . Shots Hit Robots 118 | 17 55 28 18 Core Hits 133 | 8 54 51 20 Critical Kills . | . . . . Critical Parts Destroyed . | . . . . Critical Strikes . | . . . . Melee Attacks . | . . . . Impact . | . . . . Slashing . | . . . . Piercing . | . . . . Sneak Attacks . | . . . . Combat Hostiles . | . . . . Follow-up Attacks . | . . . . Damage Inflicted 3829 | 304 1280 1298 947 Guns 1281 | 228 640 296 117 Cannons . | . . . . Explosions 2548 | 76 640 1002 830 Melee . | . . . . Ramming . | . . . . Kinetic 395 | 93 194 . 108 Thermal 1082 | 106 671 296 9 Explosive 2247 | . 415 1002 830 Electromagnetic 105 | 105 . . . Impact . | . . . . Slashing . | . . . . Piercing . | . . . . Highest Corruption . | . . . . Average Corruption . | . . . . Corruption Purged . | . . . . Corruption Blocked . | . . . . Overload Shots . | . . . . Overflow Damage 301 | 42 193 53 13 Projectiles . | . . . . Explosions 301 | 42 193 53 13 Melee . | . . . . Knockbacks . | . . . . Impact . | . . . . Kinetic . | . . . . Secondary . | . . . . Self-Inflicted Damage 240 | 64 98 72 6 Shots 10 | 2 3 4 1 Rammed . | . . . . Targets Rammed . | . . . . Kicked . | . . . . Crushed . | . . . . Highest Temperature 205 | 24 205 126 3 Average Temperature 59 | 14 78 46 2 Received Heat Transfer 56 | . . 20 36 Siege Activations . | . . . . Robots Corrupted . | . . . . Combat Hostiles . | . . . . Parts Fried . | . . . . Impact Corruptions . | . . . . Robots Melted . | . . . . Combat Hostiles . | . . . . Parts Melted 1 | . 1 . . Heat Transferred 1300 | 125 785 380 10 Parts Sabotaged . | . . . . Parts Stolen . | . . . . Parts Stripped . | . . . . Power Chain Reactions 2 | 2 . . . Alert | -11 -10 -10 -10 ------- Run | Yrd Mat Min Sub Peak Influence 491 | 30 491 481 . Initial 131 | . 19 131 . Average 275 | 13 279 331 . Maximum Alert Level 2 | . 2 2 . Low Security (%) 25 | 100 24 9 . Level 1 49 | . 49 61 . Level 2 24 | . 26 28 . Level 3 . | . . . . Level 4 . | . . . . Level 5 . | . . . . High Security . | . . . . Max Security . | . . . . Squads Dispatched 2 | . 2 . . Investigation 1 | . 1 . . Extermination . | . . . . Reinforcement 1 | . 1 . . Assault . | . . . . Garrison . | . . . . Intercept . | . . . . Searches Triggered . | . . . . Construction Impeded . | . . . . Haulers Reinforced . | . . . . Active Scanning Responses . | . . . . Cargo Convoy Interrupts . | . . . . Stealth | -11 -10 -10 -10 --------- Run | Yrd Mat Min Sub Distress Signals 3 | . 3 . . Communications Jammed . | . . . . Distress Signals . | . . . . Times Spotted 94 | . 18 24 52 Peak Tracking Total 7 | . 6 7 4 Tactical Retreats 7 | . . 2 5 Traps | -11 -10 -10 -10 ------- Run | Yrd Mat Min Sub Traps Triggered 3 | . 2 . 1 Indirectly . | . . . . Trap Hack Attempts . | . . . . Triggered . | . . . . Disarmed . | . . . . Reprogrammed . | . . . . Reused . | . . . . Traps Extracted . | . . . . Installed 4 | . . 4 . Triggered . | . . . . Machines | -11 -10 -10 -10 ---------- Run | Yrd Mat Min Sub Machines Disabled 9 | . 3 3 3 Max in Single Turn 2 | . 2 1 2 Machines Repaired . | . . . . Machines Dismantled . | . . . . Machines Sabotaged . | . . . . Overloaded Fab Kills . | . . . . Hacking | -11 -10 -10 -10 --------- Run | Yrd Mat Min Sub Machines Accessed 7 | . 6 1 . Terminals 5 | . 5 . . Fabricators . | . . . . Repair Stations 1 | . 1 . . Recycling Units . | . . . . Scanalyzers . | . . . . Garrison Access . | . . . . Total Hacks 19 | . 18 1 . Successful 9 | . 8 1 . Failed 9 | . 9 . . Catastrophic 2 | . 2 . . Database Lockouts 1 | . 1 . . Manual 12 | . 12 . . Terminals 15 | . 15 . . Fabricators . | . . . . Repair Stations 3 | . 3 . . Recycling Units . | . . . . Scanalyzers . | . . . . Garrison Access . | . . . . Terminal Hacks 7 | . 6 1 . Robot Analysis 3 | . 3 . . Prototype ID Bank 1 | . 1 . . Open Door 1 | . . 1 . Locate Traps 1 | . 1 . . Zone Layout 1 | . 1 . . Fabricator Hacks . | . . . . Repair Station Hacks 2 | . 2 . . Scan Component 1 | . 1 . . Repair 1 | . 1 . . Recycling Unit Hacks . | . . . . Scanalyzer . | . . . . Garrison Access Hacks . | . . . . Unauthorized Hacks . | . . . . Terminals . | . . . . Fabricators . | . . . . Repair Stations . | . . . . Recycling Units . | . . . . Scanalyzers . | . . . . Garrison Access . | . . . . Data Cores Recovered . | . . . . Used . | . . . . Hacking Detections 6 | . 6 . . Full Trace Events . | . . . . Feedback Events . | . . . . Feedback Blocked . | . . . . Robot Schematics Acquired . | . . . . Robots Built . | . . . . Authchips . | . . . . Time . | . . . . Total Robot Build Rating . | . . . . Part Schematics Acquired . | . . . . Parts Built . | . . . . Authchips . | . . . . Time . | . . . . Total Part Build Rating . | . . . . Parts Repaired 1 | . 1 . . Time 26 | . 26 . . Parts Recycled . | . . . . Recycled Matter . | . . . . Retrieved Matter . | . . . . Retrieved Components . | . . . . Parts Scanalyzed . | . . . . Part Schematics Acquired . | . . . . Parts Damaged . | . . . . Bothacking | -11 -10 -10 -10 ------------ Run | Yrd Mat Min Sub Used RIF Installer . | . . . . Robots Hacked . | . . . . Non-combat . | . . . . Combat . | . . . . Robot Hacks Applied . | . . . . Relay Couplers Released . | . . . . Fabnet Peak Effective % . | . . . . Robots Rewired . | . . . . Allies Hacked . | . . . . Hacks Repelled . | . . . . Allies | -11 -10 -10 -10 -------- Run | Yrd Mat Min Sub Total Allies 4 | . . 4 . Largest Group 4 | . . 4 4 Highest-Rated Group 71 | . . 71 71 Highest-Rated Ally 31 | . . 31 31 Total Orders . | . . . . Ally Attacks 24 | . . . 24 Total Damage 288 | . . . 288 Kills 3 | . . . 3 Allies Corrupted . | . . . . Allies Melted . | . . . . Intel | -11 -10 -10 -10 ------- Run | Yrd Mat Min Sub Robot Analysis Total 3 | . 3 . . Derelict Logs Recovered 2 | . . 1 1 Drone Launches . | . . . . Drone Recoveries . | . . . . Exploration | -11 -10 -10 -10 ------------- Run | Yrd Mat Min Sub Turns Passed 2604 | 167 657 721 1059 Spaces Moved 2455 | 117 555 748 1035 Core 1 | 1 . . . Treads . | . . . . Legs . | . . . . Wheels 2454 | 116 555 748 1035 Hover . | . . . . Flight . | . . . . Fastest Speed 50 | 50 80 80 80 Average Speed 83 | 81 82 80 87 Slowest Speed 95 | 90 95 80 95 Overloaded Moves . | . . . . Propulsion Burnouts . | . . . . Robots Hopped . | . . . . Cave-ins Triggered . | . . . . Exploration Rate (%) 55 | 6 63 91 61 Regions Visited 3 Branch Regions 2 Pre-discovered Areas 1 | . . . 1 Known Exits Taken . | . . . . Unknown Exits Taken 3 | 1 1 1 . Scrap Searched 9 | . . 3 6 Spaces Dug . | . . . . Terrain Destroyed 340 | 9 38 166 127 Melee . | . . . . Projectile . | . . . . AOE 340 | 9 38 166 127 Terrain Rammed . | . . . . Walls Destroyed . | . . . . Machines Disabled . | . . . . Actions | -11 -10 -10 -10 --------- Run | Yrd Mat Min Sub Total 2756 | 149 662 816 1129 Wait 34 | . 3 2 29 Move 2452 | 116 554 747 1035 Hop . | . . . . Pick Up 27 | 5 17 3 2 Fast Attach 22 | 8 5 2 7 Attach 2 | . 2 . . Detach . | . . . . Swap 38 | 2 16 18 2 Drop 32 | . 18 6 8 Fire 143 | 18 47 34 44 Melee . | . . . . Ram . | . . . . Kick . | . . . . Crush . | . . . . Escape Stasis . | . . . . Rewire . | . . . . Trap 4 | . . 4 . Miscellaneous 2 | . . . 2 Route ------- -11/Scrapyard -10/Materials (discovered 2 exits: [*Mat] / *Min) -10/Mines (discovered 3 exits: [*Mat x2] / [*Sub]) -10/Subcaves (discovered 2 exits: [*Mat] / [*Rec]) History --------- Turn | Location | Event 24 | -11/Scrapyard | Discovered new exit (range 15) 168 | -11/Scrapyard | Entered Materials 258 | -10/Materials | Central database locked down 374 | -10/Materials | Destroyed 7 combat bots 408 | -10/Materials | Discovered new exit (range 10) 721 | -10/Materials | Discovered new exit (range 12) 732 | -10/Materials | Build established: Mutant 753 | -10/Materials | Repaired Grenade Launcher? 825 | -10/Materials | Entered Mines 831 | -10/Mines | Met a Derelict who couldn't figure out how to use a Trap Extractor 854 | -10/Mines | Received a Rocket Launcher from a helpful Derelict 948 | -10/Mines | A weapon hastily lodged in a ceiling crevice suddenly fell to the ground 1061 | -10/Mines | Found a hidden stash of uninstalled traps 1063 | -10/Mines | Assembled infested the area 1068 | -10/Mines | Assisted by a Guerilla fighting off Assembled 1121 | -10/Mines | Core integrity fell below 50% 1430 | -10/Mines | Learned Materials interactive machine intel 1447 | -10/Mines | Discovered new exit (range 5) 1469 | -10/Mines | Received a Mining Laser from a helpful Derelict 1476 | -10/Mines | Discovered new exit (range 4) 1500 | -10/Mines | Assisted by bots powering up and referring to "LRC-V3" 1527 | -10/Mines | Discovered new exit (range 13) 1546 | -10/Mines | Entered Subcaves 1546 | -10/Subcaves | Accompanied by 4 allies 1621 | -10/Subcaves | Learned location of Zion (-6) 1621 | -10/Subcaves | Met a Zionite searching for "candidates" 1716 | -10/Subcaves | Disturbed a concealed Subdweller 1726 | -10/Subcaves | Core integrity fell below 20% 1960 | -10/Subcaves | Discovered new exit (range 15) 1966 | -10/Subcaves | A Subdweller sparked back to life 1966 | -10/Subcaves | A Subdweller sparked back to life 1983 | -10/Subcaves | Discovered new exit (range 14) 2004 | -10/Subcaves | Found Prototype Protection 2004 | -10/Subcaves | Identified Gun Armor 2005 | -10/Subcaves | Attached Gun Armor, gained temporary slots: Weapon x2 2024 | -10/Subcaves | Lost 3 allies 2290 | -10/Subcaves | Shifting Twisted Machinery released Sub. Laser 2299 | -10/Subcaves | Shifting Twisted Machinery released Barrage Gun 2416 | -10/Subcaves | Shifting Twisted Machinery released Sub. Optics 2484 | -10/Subcaves | Learned location of 1 exit from Materials 2605 | -10/Subcaves | Destroyed by 00-J91(R) with Subdweller Machine Gun Last Messages --------------- 02310_ Dropped Spread Laser. 02310_ Acquired Barrage Gun. 02401_ 67-OAC(u) builds Twisted Machinery. 02405_ Searching scrap... 02405_ Found Sub. Power Source. 02405_ Found 26 Matter. 02406_ Acquired 26 matter. Sub. Optics falls loose from the Twisted Machinery. 02459_ GA-27N(R) destroyed. 02466_ Acquired 50 matter. 02484_ Acquired derelict log, extracted data. Data stored: Materials exits (x1). 02532_ The unstable cave ceiling collapses. 02534_ I8-5CC(R) destroyed. 02538_ Sub. Monowheel shoots sparks and powers down. 02542_ Dropped Broken Sub. Monowheel. 02542_ Acquired Sub. Monowheel. 02544_ Acquired 34 matter. 02576_ The unstable cave ceiling collapses. 02603_ Destroyed Sub. Power Source. Map ----- +----------------------------------------------------+ | ???????????????????????????????????????????????? | | ???????????????????????????????????????????????? | | ???????????????????????????????????????????????? | | ???????????????????????????????????????????????? | | ???????????????????????????????????????????????? | | ???????????????????????????????????????????????? | | ???????????????????????????????????????????????? | | ???????????????????????????????????????????????? | | ???????????????????????????????????????????????? | | ???????????????????????????????????????????????? | | ???????????????????????????????????????????????? | | ?????????????????????????? ???????????????????? | | ????????????????????????? ##????????????????? | | ????????????????????????? ??????????????? | | ????????????????????????? ???????????????? | | ????????????????????????? ????????????????? | | ????????????????????????? #????????????????? | | ???????????????????????? ##???????????????? | | ???????????????????????? #???????????????? | | ???????????????????????? R #????????????????? | | ???????????????????????? ?????????????????? | | ???????????????????????? ??????????????????? | | ??????????????????????## #???????????????????? | | ??????????????????????# #????????????????????? | | ??????????????????????# #?????????????????????? | | ?????????????????????##@#########??????????????? | | ?????????????????????# ## ## ##?????????????? | | ?????????????????????# # ###????????#### | | ?????????????????????## = ##???????#" # | | ?????????????????????## O #???????# # | | ?????????????????????# " ##??????# | | ?????????????????????# # # ###????# | | ?????????????????????## #""" ##??## | | ?????????????????????## #####""" "#### | | ????????????????????## #??##"""" # " | | ???????????????????## "##??# " ### | | ???????????????????# ""#???##"" "#?? | | ??????????????????## " ##???#"" ## # ""#?? | | ??????????????????# #???# "##### #?? | | ?????????????????## #???# "#### ### | | ????????????????## #???# " | | ???????????????## ##???# !& ![ | | ???????????????# ##???## &&* ## | | ???????????????# ##???# # ### | | ???????????????# ## ##??######### # | | ???????????????# #### ##?????????# | | ???????????????# ### #?????????# # | | ???????????????### ## #?????????# | | ?????????????????## ##?????????# | | ??????????????????## ###??????????# | +----------------------------------------------------+ Best States ------------- Heat Dissipation 35 Energy Generation 14 Energy Capacity 280 Matter Stores 300 Matter Capacity 350 Sight Range 16 Terrain Scan Range 16 Terrain Scan Density 10 ECM Strength 1 Armor Coverage 800 Evasion (%) 44 Item Schematics ----------------- None Robot Schematics ------------------ None Fabricated ------------ Nothing Alien Tech Used ----------------- None Achievements -------------- None Challenges ------------ None Game ------ Seed DisposableFocalAccelerator Manual? 0 Play Time 00:37:14 Cumulative 421.7 hours Start 2024.06.23 @ 06:42:12 End 2024.06.23 @ 07:14:08 Sessions 1 Manual Loads 0 Difficulty Rogue Special Mode None Game No. 150 Rogue 150 Adventurer 0 Explorer 0 Win Type - Total 3 Types 0/0/2/1/0/0/0/0/0 Lore% 71 Gallery% 79 Achievement% 63 Wizard Run 0 Options --------- Layout 0 ASCII 0 Keyboard 1 Movement Arrows Keybinds 0 Fullscreen 1 Font 12/Proggy Map View 83x54 Zoom Use 0% Tactical HUD 1 Map Filters NONE Filters NONE Steam 0 RUN: 4f6c10cb-efa0-4910-b191-09033fd17176